bitfinex-derivatives/quotes_BTCF0:USTF0_20210108
["timestamp","ask_amount","ask_price","bid_price","bid_amount"]
[1610116970859,1.63632608,41398.0,41355.0,2.28138848]
[1610116971058,1.74163216,41398.0,41360.0,2.9358]
[1610116971259,1.74133608,41398.0,41360.0,2.9358]
[1610116971964,0.13632608,41361.0,41360.0,2.9358]
[1610116972361,0.13632608,41361.0,41328.0,2.30146125]
[1610116972561,0.13632608,41361.0,41330.0,0.00026986]
[1610116972763,0.13632608,41361.0,41330.0,0.10722986]
[1610116972962,0.13632608,41361.0,41330.0,0.10696]
[1610116973167,0.13632608,41361.0,41331.0,0.00026989]
[1610116973364,0.13632608,41361.0,41331.0,0.00053978]
[1610116973761,0.13632608,41332.0,41331.0,0.00053978]
[1610116974062,0.13632608,41332.0,41331.0,0.00026989]
[1610116974263,1.5,41375.0,41331.0,0.00026989]
[1610116974264,1.5,41375.0,41331.0,0.00053976]
[1610116974764,0.10262,41376.0,41332.0,0.00026987]
[1610116975965,0.10262,41376.0,41337.0,0.13632608]
[1610116976865,1.5,41375.0,41337.0,0.13632608]
[1610116977367,1.5,41375.0,41331.0,0.00026989]
[1610116977865,0.13632608,41332.0,41331.0,0.00026989]
[1610116978068,1.5,41375.0,41331.0,0.00026989]
[1610116978265,0.2955,41374.0,41331.0,0.00026989]
[1610116978565,1.5,41373.0,41331.0,0.00026989]
[1610116979665,1.5,41372.0,41331.0,0.00026989]
[1610116979866,0.13632608,41332.0,41331.0,0.00026989]
[1610116987273,0.13632608,41332.0,41327.0,3.0791]
[1610116994883,0.13632608,41332.0,41311.0,0.13632608]
[1610116995183,0.13632608,41332.0,41321.0,3.87]
[1610116996083,0.09252,41335.0,41329.0,0.13632608]
[1610116996383,0.12755,41345.0,41333.0,3.6693]
[1610116996785,0.09022,41356.0,41333.0,3.75091]
[1610116996982,1.0,41388.0,41333.0,3.75091]
[1610116997185,0.2779,41373.0,41333.0,3.75091]
[1610116997584,0.01896271,41372.0,41333.0,3.75091]
[1610116998087,0.13632608,41334.0,41333.0,3.75091]
[1610116998885,0.09728,41363.0,41333.0,3.75091]
[1610116999986,0.09728,41363.0,41345.0,0.13632608]
[1610117001186,0.09728,41363.0,41333.0,3.75091]
[1610117001886,0.13632608,41334.0,41333.0,3.75091]
[1610117002186,0.13632608,41334.0,41333.0,0.08161]
[1610117002387,0.13632608,41334.0,41328.0,0.13632608]
[1610117003889,0.13632608,41329.0,41323.0,3.739]
[1610117005993,0.09728,41363.0,41323.0,3.739]
[1610117005994,0.13632608,41324.0,41323.0,3.739]
[1610117007994,0.13632608,41324.0,41323.0,3.87532608]
[1610117010396,0.09728,41363.0,41323.0,3.87532608]
[1610117010696,0.33714901,41373.0,41323.0,3.87532608]
[1610117010896,0.33714901,41373.0,41334.0,4.0213]
[1610117011098,0.01895986,41372.0,41334.0,4.0213]
[1610117011297,0.01895986,41372.0,41334.0,4.12195]
[1610117011998,0.01895986,41372.0,41337.0,0.13632608]
[1610117012299,0.01895986,41372.0,41334.0,4.12195]
[1610117014103,0.01895986,41372.0,41338.0,0.13632608]
[1610117016002,0.13632608,41339.0,41334.0,0.10065]
[1610117016204,0.13632608,41339.0,41327.0,3.1776]
[1610117017104,0.13632608,41339.0,41318.0,0.10403]
[1610117017304,0.13632608,41339.0,41314.0,3.7951]
[1610117017505,0.13632608,41339.0,41319.0,0.00027005]
[1610117017908,0.13632608,41339.0,41319.0,0.08055]
[1610117018107,0.13632608,41320.0,41319.0,0.21687608]
[1610117018510,0.13632608,41320.0,41319.0,3.20714614]
[1610117022310,0.09154,41363.0,41319.0,3.20714614]
[1610117022510,1.0,41372.0,41319.0,0.21714614]
[1610117022712,1.0,41372.0,41327.0,3.0178]
[1610117023010,0.01896146,41371.0,41327.0,3.0178]
[1610117023410,0.01896146,41371.0,41328.0,0.00027001]
[1610117023615,0.00029624,41371.0,41328.0,0.11531001]
[1610117024115,0.00029624,41371.0,41330.0,0.13632608]
[1610117024313,0.00029619,41372.0,41330.0,0.13632608]
[1610117024713,0.00029619,41372.0,41331.0,0.00026998]
[1610117025614,0.00029619,41372.0,41329.0,0.00026998]
[1610117025815,1.0,41370.0,41329.0,0.00026998]
[1610117026015,1.0,41370.0,41332.0,0.00026998]
[1610117026316,1.50029621,41369.0,41330.0,0.00026998]
[1610117026517,1.50029621,41369.0,41333.0,0.00027001]
[1610117026817,0.00029625,41368.0,41329.0,0.0298914]
[1610117027017,0.00029625,41368.0,41328.0,0.11504]
[1610117027018,0.00029625,41368.0,41334.0,0.00027008]
[1610117027217,0.00029625,41368.0,41330.0,0.00027008]
[1610117027418,0.0030711,41366.0,41330.0,0.00027008]
[1610117027615,0.00307121,41365.0,41320.0,0.02990012]
[1610117027816,1.0,41357.0,41331.0,0.00027008]
[1610117028016,0.13632608,41332.0,41321.0,0.00027008]
[1610117028417,0.13632608,41332.0,41320.0,0.02963004]
[1610117028418,0.13632608,41332.0,41320.0,0.02990012]
[1610117028617,0.13632608,41332.0,41322.0,0.00027008]
[1610117028917,0.13632608,41332.0,41321.0,0.00027008]
[1610117029118,0.13632608,41332.0,41320.0,0.02990012]
[1610117029319,0.13632608,41332.0,41322.0,0.0002701]
[1610117029718,0.13632608,41332.0,41321.0,0.0002701]
[1610117029919,0.13632608,41332.0,41323.0,0.0002701]
[1610117030121,0.10724,41341.0,41322.0,0.00027012]
[1610117030619,1.60724,41341.0,41310.0,2.97142]
[1610117030828,1.60724,41341.0,41323.0,0.00026689]
[1610117031021,1.60724,41341.0,41311.0,0.00026687]
[1610117031321,1.60724,41341.0,41324.0,0.00026689]
[1610117031524,0.00029638,41340.0,41312.0,0.00026691]
[1610117031722,0.00029638,41340.0,41311.0,0.00026691]
[1610117032222,0.00308847,41339.0,41312.0,0.00026695]
[1610117032423,0.01058834,41339.0,41312.0,0.00026695]
[1610117032625,0.00308827,41337.0,41311.0,0.00026698]
[1610117032924,0.00308827,41336.0,41313.0,0.00026698]
[1610117033127,0.00338472,41336.0,41312.0,0.00026698]
[1610117033326,0.00029645,41335.0,41311.0,0.00026698]
[1610117033525,0.00029645,41335.0,41313.0,0.00026698]
[1610117033825,0.00029645,41335.0,41312.0,0.00026698]
[1610117034126,0.13632608,41313.0,41310.0,0.10182]
[1610117034626,0.13632608,41313.0,41311.0,0.00026698]
[1610117038227,0.13632608,41313.0,41310.0,0.10182]
[1610117038427,0.13632608,41313.0,41292.0,3.668]
[1610117038928,0.13632608,41313.0,41293.0,0.00026698]
[1610117039127,0.13632608,41313.0,41293.0,0.10900698]
[1610117039828,0.13632608,41313.0,41294.0,0.00026698]
[1610117040229,0.13632608,41295.0,41294.0,0.00026698]
[1610117043432,0.3002,41330.0,41294.0,0.00026698]
[1610117043632,0.10724,41341.0,41294.0,0.00026698]
[1610117043833,0.277,41340.0,41294.0,0.00026698]
[1610117044033,0.277,41340.0,41305.0,3.7283]
[1610117044234,0.13632608,41306.0,41305.0,3.83891]
[1610117044636,0.13632608,41306.0,41305.0,3.8391769]
[1610117045437,0.13632608,41306.0,41305.0,0.1108769]
[1610117049442,0.13632608,41306.0,41305.0,0.11061]
[1610117049640,0.13632608,41306.0,41305.0,0.00026696]
[1610117049843,0.13632608,41306.0,41305.0,0.12180696]
[1610117056153,0.13632608,41306.0,41305.0,0.15115773]
[1610117058857,0.58328683,41306.0,41305.0,0.15115773]
[1610117060260,0.58328683,41306.0,41305.0,0.28748381]
[1610117062866,0.44696075,41306.0,41305.0,0.28748381]
[1610117063065,0.44696075,41306.0,41305.0,3.74738381]
[1610117063564,0.44696075,41306.0,41305.0,3.80274315]
[1610117063863,0.44696075,41306.0,41305.0,0.34284315]
[1610117064063,0.44696075,41306.0,41305.0,0.28748381]
[1610117064465,0.12376075,41306.0,41305.0,0.28748381]
[1610117066065,0.13632608,41329.0,41305.0,0.28748381]
[1610117066366,0.13632608,41329.0,41328.0,0.13632608]
[1610117066565,0.2752,41363.0,41328.0,0.24489608]
[1610117066766,0.2752,41363.0,41328.0,0.27446746]
[1610117066965,0.2752,41363.0,41329.0,0.02957105]
[1610117067765,0.2752,41363.0,41329.0,0.00026673]
[1610117068065,0.2752,41363.0,41330.0,0.00026673]
[1610117068266,0.08117,41366.0,41340.0,0.13632608]
[1610117068666,0.2905,41375.0,41341.0,0.00026673]
[1610117070269,0.13632608,41342.0,41341.0,0.00026673]
[1610117080075,1.63632608,41342.0,41341.0,0.00026673]
[1610117080277,1.63632608,41342.0,41328.0,0.10857]
[1610117080477,1.63632608,41342.0,41305.0,0.12154]
[1610117080678,1.73074608,41342.0,41273.0,2.39549174]
[1610117080877,1.73074608,41342.0,41294.0,0.0002668]
[1610117081078,0.2714,41341.0,41294.0,0.0980668]
[1610117081276,1.5,41340.0,41294.0,0.0978]
[1610117081478,1.5,41340.0,41295.0,0.00026684]
[1610117082278,0.13632608,41296.0,41295.0,0.00026684]
[1610117086782,0.2714,41341.0,41295.0,0.00026684]
[1610117088384,0.2714,41341.0,41309.0,0.13632608]
[1610117088584,0.2714,41341.0,41309.0,0.25765608]
[1610117088783,0.2714,41341.0,41310.0,0.00026682]
[1610117089686,1.7714,41341.0,41310.0,0.00026682]
[1610117090285,0.13632608,41311.0,41310.0,0.00026682]
[1610117090585,0.13632608,41311.0,41309.0,0.12133]
[1610117093685,0.13632608,41311.0,41294.0,0.0978]
[1610117094087,0.13632608,41311.0,41295.0,0.00026756]
[1610117094287,0.13632608,41296.0,41295.0,0.00026756]
[1610117094687,0.13632608,41296.0,41280.0,0.13632608]
[1610117095088,0.13632608,41296.0,41281.0,0.00026758]
[1610117095288,0.13632608,41296.0,41281.0,0.09801758]
[1610117095896,0.13632608,41296.0,41282.0,0.00026758]
[1610117096398,0.13632608,41283.0,41282.0,0.00026758]
[1610117099596,0.13632608,41283.0,41281.0,0.09775]
[1610117100396,0.13632608,41283.0,41262.0,0.13632608]
[1610117100596,0.13632608,41283.0,41258.0,3.9663]
[1610117100999,0.13632608,41283.0,41263.0,0.00026772]
[1610117101296,0.13632608,41283.0,41263.0,0.11828]
[1610117101597,0.13632608,41283.0,41264.0,0.00026772]
[1610117102396,0.13632608,41265.0,41264.0,0.00026772]
[1610117103096,0.2859,41288.0,41264.0,0.00026772]
[1610117103398,0.2859,41288.0,41272.0,3.9496]
[1610117103596,0.2859,41288.0,41272.0,4.07763]
[1610117103799,0.2859,41288.0,41273.0,0.00026769]
[1610117104499,0.13632608,41287.0,41284.0,0.13632608]
[1610117104799,0.13632608,41287.0,41285.0,0.00026763]
[1610117105200,0.13632608,41287.0,41285.0,0.10562763]
[1610117105601,0.13632608,41287.0,41286.0,0.00026763]
[1610117106401,0.13632608,41287.0,41286.0,0.13659371]
[1610117107104,0.13632608,41287.0,41286.0,0.00026763]
[1610117113516,0.08051,41319.0,41286.0,0.00026763]
[1610117113829,0.2719,41318.0,41293.0,3.3506]
[1610117114115,0.2719,41318.0,41294.0,0.00026757]
[1610117114315,0.2719,41318.0,41294.0,0.12487757]
[1610117114516,0.2719,41318.0,41298.0,0.13632608]
[1610117114917,0.2719,41318.0,41299.0,0.00026755]
[1610117116517,0.2719,41318.0,41305.0,0.13632608]
[1610117116717,0.2719,41318.0,41305.0,0.25324608]
[1610117116917,0.2719,41318.0,41306.0,0.00026752]
[1610117118520,0.13632608,41307.0,41306.0,0.00026752]
[1610117120834,0.2719,41318.0,41306.0,0.00026752]
[1610117122530,0.13632608,41307.0,41306.0,0.00026752]
[1610117123442,0.2719,41318.0,41306.0,0.00026752]
[1610117124427,0.2719,41318.0,41317.0,0.13632608]
[1610117124627,0.2719,41318.0,41317.0,0.26195608]
[1610117125029,0.2719,41318.0,41317.0,0.26222351]
[1610117125227,0.13632608,41320.0,41317.0,0.26222351]
[1610117125627,0.13632608,41320.0,41318.0,0.00026743]
[1610117126529,0.13632608,41320.0,41318.0,0.0997]
[1610117126930,0.13632608,41320.0,41319.0,0.00026724]
[1610117127732,0.13632608,41320.0,41294.0,0.12461]
[1610117127733,0.13662246,41320.0,41306.0,0.00026727]
[1610117127932,0.26057608,41320.0,41306.0,0.00026727]
[1610117128331,0.00029638,41319.0,41295.0,0.00026727]
[1610117128533,0.00029638,41319.0,41294.0,0.12461]
[1610117128534,0.13632608,41296.0,41294.0,0.12461]
[1610117128732,0.13632608,41296.0,41295.0,0.00026728]
[1610117129031,0.13632608,41296.0,41295.0,0.10033728]
[1610117129231,0.13632608,41296.0,41295.0,0.10007]
[1610117129531,0.13632608,41296.0,41295.0,0.10033728]
[1610117131833,0.13632608,41296.0,41295.0,0.12977199]
[1610117132737,0.12425,41320.0,41295.0,0.12977199]
[1610117133135,3.1258,41330.0,41295.0,0.12977199]
[1610117133333,3.1258,41330.0,41296.0,0.02969825]
[1610117133538,0.00029637,41329.0,41296.0,0.02969822]
[1610117134435,0.00029637,41329.0,41297.0,0.13632608]
[1610117134937,0.00029637,41329.0,41298.0,0.02969268]
[1610117136438,0.13632608,41299.0,41298.0,0.02969268]
[1610117143343,0.13632608,41299.0,41296.0,0.02969772]
[1610117143845,0.13632608,41299.0,41296.0,0.00026727]
[1610117144043,0.13632608,41299.0,41297.0,0.00026731]
[1610117144745,0.13632608,41299.0,41296.0,0.00026734]
[1610117144945,0.13632608,41299.0,41298.0,0.00026734]
[1610117145146,0.13632608,41299.0,41297.0,0.00026734]
[1610117145349,0.13632608,41299.0,41298.0,0.00026734]
[1610117146049,0.13632608,41299.0,41296.0,0.00026734]
[1610117146247,0.13632608,41299.0,41298.0,0.00026734]
[1610117146448,0.13632608,41299.0,41296.0,0.00026734]
[1610117146949,0.13632608,41299.0,41297.0,0.00026734]
[1610117147250,0.13632608,41299.0,41298.0,0.00026734]
[1610117147750,0.13632608,41299.0,41295.0,0.10007]
[1610117147751,0.13632608,41299.0,41296.0,0.00026734]
[1610117148152,0.13632608,41299.0,41298.0,0.00026734]
[1610117148351,0.13632608,41299.0,41297.0,0.00026734]
[1610117148650,0.13632608,41299.0,41298.0,0.00026734]
[1610117149153,0.13632608,41299.0,41296.0,0.00026734]
[1610117149351,0.13632608,41299.0,41298.0,0.00026734]
[1610117149551,0.13632608,41299.0,41297.0,0.00026732]
[1610117150055,0.13632608,41299.0,41296.0,0.00026732]
[1610117150257,0.13632608,41299.0,41298.0,0.0002673]
[1610117150456,0.13632608,41299.0,41297.0,0.00026728]
[1610117150656,0.13632608,41299.0,41298.0,0.00026728]
[1610117151355,0.2742,41322.0,41298.0,0.00026728]
[1610117152757,0.2742,41322.0,41304.0,0.13632608]
[1610117152957,0.2742,41322.0,41305.0,0.00026533]
[1610117154558,0.13632608,41306.0,41305.0,0.00026533]
[1610117169676,0.26708326,41306.0,41305.0,0.00026533]
[1610117173482,0.26708326,41306.0,41295.0,0.10007]
[1610117173784,0.26708326,41306.0,41286.0,3.127]
[1610117174183,0.26708326,41306.0,41296.0,0.00026541]
[1610117174383,0.26708326,41306.0,41296.0,0.11053]
[1610117174583,0.26708326,41306.0,41297.0,0.00026541]
[1610117174783,0.13632608,41298.0,41297.0,0.00026541]
[1610117176288,2.14172608,41298.0,41256.0,2.43358676]
[1610117176487,1.63632608,41298.0,41254.0,2.43443966]
[1610117176685,4.0323,41296.0,41263.0,3.2876]
[1610117176888,1.5,41295.0,41286.0,0.00026545]
[1610117177089,1.5,41295.0,41264.0,0.08358427]
[1610117177491,1.5,41295.0,41287.0,0.00026548]
[1610117177690,1.5,41295.0,41264.0,0.08358429]
[1610117177990,1.5,41295.0,41288.0,0.00026548]
[1610117178190,1.5,41295.0,41280.0,0.00026551]
[1610117178791,0.13632608,41281.0,41280.0,0.00026551]
[1610117179189,0.13632608,41281.0,41248.0,0.13632608]
[1610117179391,1.63632608,41281.0,41247.0,3.4053]
[1610117179690,1.63632608,41281.0,41249.0,0.02902025]
[1610117179891,0.13632608,41281.0,41249.0,0.11858]
[1610117180090,0.13632608,41281.0,41250.0,0.02902049]
[1610117180692,0.13632608,41251.0,41250.0,0.02902049]
[1610117186102,0.13632608,41251.0,41250.0,0.0002655]
[1610117190705,0.50982388,41251.0,41250.0,0.0002655]
[1610117200723,0.50982388,41251.0,41249.0,0.11858]
[1610117200925,0.50982388,41251.0,41250.0,0.00026549]
[1610117201125,0.50982388,41251.0,41250.0,0.09400549]
[1610117201424,0.50982388,41251.0,41250.0,0.09374]
[1610117201625,0.50982388,41251.0,41250.0,0.09400549]
[1610117202927,0.50982388,41251.0,41250.0,0.09374]
[1610117204228,2.50912388,41251.0,41227.0,3.9183]
[1610117204532,2.9981,41244.0,41207.0,4.0226]
[1610117204830,0.13632608,41208.0,41200.0,0.13632608]
[1610117205028,1.8734978,41251.0,41185.0,2.88865394]
[1610117205029,3.225,41227.0,41196.0,2.45605822]
[1610117205229,3.225,41227.0,41196.0,0.09161]
[1610117205430,3.225,41227.0,41201.0,0.02899238]
[1610117205633,3.225,41227.0,41197.0,0.05454451]
[1610117205634,3.225,41227.0,41197.0,0.08353986]
[1610117205834,3.225,41227.0,41202.0,0.02900606]
[1610117206232,1.3734978,41251.0,41198.0,0.02900715]
[1610117206533,1.3734978,41251.0,41203.0,3.67620921]
[1610117206732,1.3734978,41251.0,41204.0,0.0290034]
[1610117206932,0.13632608,41221.0,41218.0,0.13632608]
[1610117207133,0.13632608,41221.0,41220.0,2.7322]
[1610117207336,0.13632608,41221.0,41220.0,2.82032]
[1610117207537,0.13632608,41221.0,41220.0,2.82058566]
[1610117208835,0.13632608,41221.0,41220.0,0.08838566]
[1610117210937,0.13632608,41221.0,41220.0,0.08812]
[1610117212237,0.13632608,41221.0,41210.0,3.1072]
[1610117212737,0.13632608,41221.0,41211.0,0.00026565]
[1610117212940,3.2762,41249.0,41211.0,0.00026565]
[1610117213139,3.2762,41249.0,41211.0,0.08088565]
[1610117213540,0.00029688,41248.0,41212.0,0.00026565]
[1610117214240,0.00029688,41250.0,41212.0,0.00026565]
[1610117214643,0.00029688,41247.0,41212.0,0.00026565]
[1610117214841,0.13632608,41213.0,41212.0,0.00026565]
[1610117217244,0.13632608,41213.0,41211.0,0.08062]
[1610117217443,0.13632608,41213.0,41212.0,0.00026567]
[1610117219546,0.13632608,41213.0,41211.0,0.08062]
[1610117219747,0.13632608,41213.0,41201.0,2.9052]
[1610117220148,0.13632608,41213.0,41202.0,0.00026569]
[1610117220550,0.13632608,41213.0,41201.0,2.9052]
[1610117220952,0.13632608,41202.0,41196.0,0.09161]
[1610117221351,0.13632608,41202.0,41197.0,0.00026569]
[1610117221550,0.13632608,41202.0,41197.0,0.12619569]
[1610117221951,0.13632608,41202.0,41198.0,0.00026571]
[1610117224652,0.13632608,41202.0,41197.0,0.12593]
[1610117226753,0.13632608,41202.0,41181.0,3.9716]
[1610117226955,3.2342,41223.0,41187.0,0.13632608]
[1610117227154,3.2342,41223.0,41188.0,0.00026576]
[1610117227854,0.12615,41245.0,41188.0,0.00026576]
[1610117228055,0.12615,41245.0,41190.0,3.2415]
[1610117228259,0.00029699,41244.0,41190.0,3.2415]
[1610117228456,1.50029699,41244.0,41190.0,3.2415]
[1610117228757,0.00029699,41243.0,41191.0,0.00026576]
[1610117228957,0.00029699,41243.0,41193.0,0.13632608]
[1610117229258,0.00029699,41243.0,41194.0,0.00026576]
[1610117229858,0.00029699,41244.0,41194.0,0.00026576]
[1610117230059,0.00029699,41242.0,41194.0,0.00026576]
[1610117230459,0.00029699,41243.0,41191.0,0.00026576]
[1610117230661,0.00029699,41241.0,41195.0,0.00026576]
[1610117230860,0.13632608,41196.0,41192.0,0.00026576]
[1610117231261,0.13632608,41196.0,41190.0,3.2415]
[1610117231461,0.13632608,41196.0,41191.0,0.00026576]
[1610117232762,0.13632608,41196.0,41188.0,0.00026576]
[1610117232961,0.13632608,41189.0,41188.0,0.02874485]
[1610117233460,0.13632608,41189.0,41188.0,0.02901061]
[1610117234862,0.13632608,41195.0,41188.0,0.16533669]
[1610117235162,1.0,41235.0,41194.0,3.4425]
[1610117235661,0.00029694,41234.0,41195.0,0.00026573]
[1610117235861,0.00029694,41234.0,41195.0,0.02900366]
[1610117236161,0.00029694,41234.0,41194.0,3.4425]
[1610117236362,0.00029694,41244.0,41195.0,0.00026571]
[1610117236763,0.12615,41245.0,41195.0,0.02900015]
[1610117236965,0.0002969,41243.0,41217.0,0.13632608]
[1610117237164,0.0002969,41244.0,41218.0,0.00026567]
[1610117237365,0.0002969,41244.0,41218.0,4.14302567]
[1610117237563,0.0002969,41242.0,41218.0,4.14302567]
[1610117237763,0.00029688,41243.0,41219.0,0.00026565]
[1610117237965,0.2883,41253.0,41218.0,4.14276]
[1610117237966,0.00029688,41248.0,41220.0,0.00026565]
[1610117238364,0.2883,41253.0,41220.0,0.00026565]
[1610117238565,0.00029686,41247.0,41219.0,0.00026565]
[1610117238765,0.00029686,41248.0,41221.0,0.00026562]
[1610117239166,0.2883,41253.0,41220.0,0.00026562]
[1610117239466,0.2883,41253.0,41222.0,0.00026562]
[1610117239664,0.2883,41253.0,41221.0,0.0002656]
[1610117239865,0.2883,41253.0,41223.0,0.0002656]
[1610117240064,0.2883,41253.0,41222.0,0.0002656]
[1610117240366,0.2883,41253.0,41224.0,0.0002656]
[1610117240565,0.2883,41253.0,41223.0,0.0002656]
[1610117240965,0.2883,41253.0,41232.0,3.3945]
[1610117241165,0.2883,41253.0,41232.0,3.51148]
[1610117241366,0.2883,41253.0,41233.0,0.00026558]
[1610117241766,0.3195,41262.0,41233.0,0.00026558]
[1610117242272,0.1569,41265.0,41233.0,0.00026558]
[1610117242469,0.00029677,41261.0,41233.0,0.00026558]
[1610117242669,0.1569,41265.0,41233.0,0.00026558]
[1610117242670,0.00029677,41264.0,41233.0,0.00026558]
[1610117242868,0.00029677,41264.0,41241.0,0.13632608]
[1610117243169,0.00029677,41260.0,41241.0,0.25414608]
[1610117243369,0.00029677,41263.0,41241.0,0.25414608]
[1610117243570,0.1569,41265.0,41242.0,0.00026553]
[1610117244872,0.13632608,41243.0,41242.0,0.00026553]
[1610117248377,0.13632608,41243.0,41241.0,0.11782]
[1610117248579,0.13632608,41243.0,41232.0,0.11698]
[1610117248778,0.13632608,41243.0,41225.0,4.0082]
[1610117248978,0.13632608,41226.0,41225.0,4.0082]
[1610117249477,0.13632608,41226.0,41225.0,4.00846551]
[1610117250778,0.13632608,41226.0,41225.0,0.00026551]
[1610117251178,0.13632608,41226.0,41219.0,0.00026554]
[1610117251380,0.13632608,41226.0,41218.0,0.07696]
[1610117251596,0.13632608,41226.0,41210.0,2.7362]
[1610117251784,0.13632608,41226.0,41220.0,0.00026559]
[1610117252078,0.13632608,41226.0,41220.0,0.07798]
[1610117252278,0.13632608,41226.0,41221.0,0.00026559]
[1610117252487,0.13632608,41226.0,41220.0,0.07798]
[1610117252778,0.13632608,41226.0,41221.0,0.00026562]
[1610117253981,0.13632608,41226.0,41220.0,0.07798]
[1610117254178,0.13632608,41226.0,41197.0,3.8802]
[1610117254490,0.21731608,41226.0,41197.0,3.8802]
[1610117254682,0.21731608,41226.0,41198.0,0.00026565]
[1610117255079,0.13632608,41199.0,41198.0,0.09487565]
[1610117256384,0.13632608,41199.0,41198.0,0.09461]
[1610117256782,0.13632608,41199.0,41198.0,0.09487579]
[1610117263991,0.20912608,41199.0,41198.0,0.09487579]
[1610117264192,0.13632608,41199.0,41198.0,0.09487579]
[1610117265293,0.20812608,41199.0,41198.0,0.09487579]
[1610117265694,0.13632608,41199.0,41198.0,0.09487579]
[1610117266896,0.20832608,41199.0,41198.0,0.09461]
[1610117267095,0.20832608,41199.0,41189.0,3.7993]
[1610117267496,0.20832608,41199.0,41190.0,0.00026579]
[1610117267800,0.13632608,41199.0,41190.0,0.00026579]
[1610117269098,0.13632608,41191.0,41190.0,0.00026579]
[1610117270098,0.20882608,41191.0,41190.0,0.00026579]
[1610117270700,0.13632608,41191.0,41190.0,0.00026579]
[1610117272003,0.13632608,41191.0,41188.0,0.0002607]
[1610117272204,0.13632608,41191.0,41190.0,0.0002607]
[1610117272406,0.13632608,41191.0,41189.0,0.00026072]
[1610117272804,0.13632608,41191.0,41190.0,0.00026072]
[1610117273205,0.13632608,41191.0,41188.0,0.00026072]
[1610117273505,0.13632608,41191.0,41190.0,0.00026072]
[1610117273706,0.13632608,41191.0,41188.0,0.02719521]
[1610117273907,0.20942608,41191.0,41188.0,0.02719521]
[1610117274610,0.13632608,41191.0,41188.0,0.02719521]
[1610117275210,0.12531,41237.0,41188.0,0.02719521]
[1610117275610,0.0728,41224.0,41199.0,3.3381]
[1610117276210,0.0728,41224.0,41200.0,0.02717976]
[1610117276610,0.1569,41242.0,41200.0,0.13262976]
[1610117277112,0.1569,41242.0,41203.0,0.13632608]
[1610117277510,0.1569,41242.0,41204.0,0.02717709]
[1610117279013,0.13632608,41205.0,41204.0,0.02717709]
[1610117285421,0.0722,41213.0,41204.0,0.02717709]
[1610117285622,0.2627,41256.0,41212.0,3.8732]
[1610117285821,0.1058,41256.0,41212.0,3.97754]
[1610117286023,0.1058,41256.0,41213.0,0.02716655]
[1610117286224,0.1058,41256.0,41213.0,0.07911054]
[1610117286624,0.0727,41272.0,41213.0,0.02716655]
[1610117286823,0.1569,41273.0,41213.0,0.02716655]
[1610117287026,0.1569,41273.0,41214.0,0.02715971]
[1610117287226,0.1569,41273.0,41239.0,0.13632608]
[1610117287424,0.1569,41273.0,41250.0,3.0033]
[1610117287724,0.1569,41273.0,41250.0,3.10774]
[1610117288526,0.1569,41273.0,41251.0,0.00026043]
[1610117288726,0.1569,41273.0,41250.0,3.10774]
[1610117289327,0.13632608,41251.0,41250.0,0.10444]
[1610117290126,0.13632608,41251.0,41250.0,0.10470043]
[1610117290928,0.13632608,41251.0,41250.0,0.10444]
[1610117291129,0.13632608,41251.0,41250.0,0.24076608]
[1610117292236,0.00307745,41293.0,41250.0,0.24076608]
[1610117292628,0.01480107,41295.0,41250.0,0.24076608]
[1610117292629,0.01055112,41295.0,41250.0,0.24076608]
[1610117292829,0.00307741,41295.0,41251.0,0.00026039]
[1610117293230,0.00307731,41296.0,41261.0,0.13632608]
[1610117293430,0.00307573,41297.0,41261.0,0.21841608]
[1610117293629,0.00307573,41297.0,41269.0,3.1551]
[1610117293829,0.00307569,41298.0,41269.0,3.1551]
[1610117294333,0.01054373,41299.0,41269.0,3.1551]
[1610117294730,0.00307419,41299.0,41269.0,3.1551]
[1610117295331,0.13632608,41270.0,41269.0,3.1551]
[1610117297336,0.13632608,41270.0,41269.0,3.29142608]
[1610117298934,0.1569,41300.0,41269.0,3.29142608]
[1610117299336,0.1569,41300.0,41275.0,0.13632608]
[1610117299538,0.1569,41300.0,41275.0,0.22849608]
[1610117301238,0.13632608,41276.0,41275.0,0.22849608]
[1610117301840,0.18987868,41270.0,41269.0,3.1551]
[1610117303341,0.32620476,41270.0,41269.0,3.29142608]
[1610117306745,0.32620476,41270.0,41261.0,0.08209]
[1610117306944,0.32620476,41270.0,41250.0,0.10444]
[1610117306945,0.32620476,41270.0,41254.0,2.7885]
[1610117307447,0.18987868,41270.0,41257.0,0.13632608]
[1610117308146,0.18987868,41270.0,41254.0,2.7885]
[1610117308947,0.18987868,41270.0,41250.0,0.10444]
[1610117309164,0.18987868,41270.0,41237.0,3.8351]
[1610117309450,0.13632608,41251.0,41237.0,3.8351]
[1610117311451,0.13632608,41238.0,41237.0,3.8351]
[1610117314954,0.13632608,41238.0,41237.0,3.83536048]
[1610117319872,0.13632608,41238.0,41237.0,3.94385048]
[1610117320273,3.4027,41289.0,41237.0,3.94385048]
[1610117320464,0.1569,41291.0,41237.0,0.10875048]
[1610117320666,0.00029668,41284.0,41238.0,0.00026048]
[1610117320864,0.09582,41286.0,41256.0,2.8779]
[1610117321065,0.09582,41286.0,41256.0,2.97966]
[1610117321368,0.13632608,41257.0,41256.0,2.97966]
[1610117322065,0.09582,41286.0,41256.0,2.97966]
[1610117322267,0.1569,41291.0,41256.0,0.10176]
[1610117322468,0.00029664,41285.0,41276.0,3.5297]
[1610117322868,0.00029662,41290.0,41276.0,3.5297]
[1610117323067,0.17803483,41311.0,41276.0,3.63976]
[1610117323068,0.02119349,41310.0,41276.0,3.63976]
[1610117323270,0.00029661,41289.0,41276.0,3.63976]
[1610117323467,0.13632608,41277.0,41276.0,3.63976]
[1610117325272,0.13632608,41277.0,41276.0,3.64002037]
[1610117325471,0.13632608,41277.0,41276.0,3.77634645]
[1610117327975,0.13632608,41277.0,41276.0,0.24664645]
[1610117328577,0.13632608,41277.0,41276.0,0.24638608]
[1610117328776,0.13632608,41277.0,41276.0,0.24664642]
[1610117329076,0.13632608,41277.0,41276.0,0.24638608]
[1610117329477,0.13632608,41277.0,41276.0,0.24664642]
[1610117330078,0.13632608,41277.0,41276.0,0.24638608]
[1610117331179,0.13632608,41277.0,41276.0,0.24664776]
[1610117331978,0.13632608,41277.0,41276.0,0.11032168]
[1610117333179,4.052,41309.0,41276.0,0.11032168]
[1610117333482,4.052,41309.0,41289.0,0.13632608]
[1610117333680,0.1569,41313.0,41289.0,0.22257608]
[1610117333981,0.1569,41313.0,41289.0,0.08625]
[1610117334180,0.00029653,41312.0,41289.0,0.08625]
[1610117335382,0.13632608,41290.0,41289.0,0.08625]
[1610117335883,0.13632608,41290.0,41289.0,0.08651167]